fUSD/lending_fUSD_20240217
["ID","MTS","AMOUNT","RATE_DAILY","PERIOD"]
[314315877,1708176643600,-1045.55307794,0.00054794,31]
[314315878,1708176643612,-485.85700665,0.00054794,31]
[314315879,1708176643624,-2627.76022133,0.00054794,31]
[314315880,1708176643635,-1172.89441763,0.00054794,31]
[314315881,1708176643647,-1367.80188262,0.00054794,31]
[314315882,1708176643659,-10310.30000001,0.00054794,31]
[314315883,1708176643670,-4690.0469216,0.00054794,31]
[314315888,1708176645500,-155.0,0.00049999,4]
[314315889,1708176645510,-4417.52516995,0.00053314,120]
[314315890,1708176645521,-1033.67163201,0.00053314,120]
[314315891,1708176645533,-1476.0,0.00054,120]
[314315893,1708176645543,-45982.90382132,0.00054794,31]
[314315896,1708176645564,-9360.42662505,0.00054794,31]
[314315897,1708176645575,-8942.38125732,0.00054794,31]
[314315898,1708176645586,-710.8469105,0.00054794,31]
[314315899,1708176645597,-2275.75649064,0.00054794,31]
[314315900,1708176645718,-471.265,0.00054794,31]
[314315901,1708176645729,-4805.24323817,0.00054794,31]
[314315902,1708176645741,-996.27509641,0.00054794,31]
[314315903,1708176645752,-299.33406665,0.00054794,31]
[314315904,1708176645763,-736.19737716,0.00054794,31]
[314315905,1708176645785,-150.0,0.000401,2]
[314315906,1708176645795,-18204.4963562,0.00054794,31]
[314315907,1708176645806,-3378.80629075,0.00054794,31]
[314315908,1708176645848,-48855.27091327,0.00054794,31]
[314315910,1708177501917,156.29335066,0.00022288,2]
[314316014,1708177834156,-698.56507,0.00033999,4]
[314316015,1708177834166,-206.0,0.00034,2]
[314316016,1708177834176,-375.338555,0.0003452,2]
[314316017,1708177834189,-67.758152,0.0003452,2]
[314316018,1708177834198,-3372.419104,0.0003452,2]
[314316019,1708177834208,-178.58251086,0.00034594,2]
[314316020,1708177834217,-775.8896,0.00034694,2]
[314316021,1708177834227,-664.64506,0.00034794,2]
[314316022,1708177834237,-5058.628656,0.00034794,2]
[314316023,1708177834247,-886.193414,0.00034931,2]
[314316024,1708177834258,-6744.838208,0.00034931,2]
[314316025,1708177834268,-1107.741768,0.00035068,2]
[314316026,1708177834277,-6701.80352714,0.00035068,2]
[314316027,1708177834299,-1537.76926975,0.00035068,2]
[314316028,1708177834311,-191.47496411,0.00035068,2]
[314316029,1708177834321,-1550.838475,0.00035342,2]
[314316030,1708177834331,-820.51192889,0.00035342,2]
[314316031,1708177834343,-10982.95493611,0.00035342,2]
[314316032,1708177834353,-499.99,0.00035342,2]
[314316033,1708177834363,-1304.55506389,0.000378,2]
[314316034,1708177834375,-4740.44493611,0.000378,2]
[314316035,1708177834385,-663.87,0.00038,7]
[314316036,1708177834395,-206.0,0.000392,13]
[314316037,1708177834404,-188.1131995,0.00039999,2]
[314316038,1708177834414,-255.0,0.0004,12]
[314316039,1708177834424,-255.0,0.0004,12]
[314316040,1708177834433,-194.65,0.000401,2]
[314316041,1708177834443,-300.0,0.00041034,37]
[314316042,1708177834453,-497.782397,0.00041096,14]
[314316043,1708177834463,-3158.045964,0.00041096,14]
[314316044,1708177834473,-7481.46430698,0.00041799,4]
[314316045,1708177834483,-223.26,0.000418,4]
[314316046,1708177834492,-223.26,0.000418,4]
[314316047,1708177834502,-223.26,0.000418,4]
[314316049,1708177834517,-223.26,0.000418,4]
[314316051,1708177834526,-223.26,0.000418,4]
[314316053,1708177834536,-223.26,0.000418,4]
[314316055,1708177834546,-223.26,0.000418,4]
[314316057,1708177834555,-223.26,0.000418,4]
[314316059,1708177834565,-223.26,0.000418,4]
[314316061,1708177834575,-223.26,0.000418,4]
[314316063,1708177834584,-223.26,0.000418,4]
[314316065,1708177834594,-166.99119641,0.000418,4]
[314316067,1708177834606,-56.26880359,0.000418,4]
[314316069,1708177834618,-223.26,0.000418,4]
[314316070,1708177834628,-223.26,0.000418,4]
[314316071,1708177834637,-223.26,0.000418,4]
[314316072,1708177834646,-223.26,0.000418,4]
[314316073,1708177834657,-76.15563641,0.000418,4]
[314316074,1708177834669,-147.10436359,0.000418,4]
[314316075,1708177834678,-223.26,0.000418,4]
[314316076,1708177834688,-129.93719641,0.000418,4]
[314316077,1708177834705,-93.32280359,0.000418,4]
[314316078,1708177834715,-223.26,0.000418,4]
[314316079,1708177834724,-122.43718441,0.00041918,14]
[314316080,1708177834735,-368.92953104,0.00041918,14]
[314316085,1708177839605,-6.41568155,0.00041918,14]
[314316086,1708177839615,-327.99806693,0.00042634,2]
[314316087,1708177839841,-1539.763225,0.00042634,2]
[314316088,1708177839899,-1079.066,0.00042634,2]
[314316089,1708177840024,-782.52983112,0.00042634,2]
[314316095,1708177840387,-4349.25807695,0.00042634,2]
[314316096,1708177840396,-180.86,0.00042724,10]
[314316097,1708177840406,-155.0,0.00042733,4]
[314316098,1708177840417,-7094.18192304,0.00042734,14]
[314316099,1708177840429,-1810.0,0.00042734,14]
[314316100,1708177840441,-5125.05603392,0.00042734,14]
[314316101,1708177840453,-417.24802236,0.00042734,14]
[314316102,1708177840465,-449.12448053,0.00042734,14]
[314316103,1708177841322,-15455.50000069,0.00042734,14]
[314316104,1708177841331,-15946.87369483,0.00042734,14]
[314316105,1708177841341,-497.782397,0.0004274,14]
[314316106,1708177841351,-497.782397,0.00043562,14]
[314316107,1708177841360,-497.782397,0.00044384,14]
[314316108,1708177841370,-206.0,0.000444,25]
[314316109,1708177841379,-323.73,0.00044718,2]
[314316110,1708177841389,-23900.0,0.00044812,2]
[314316111,1708177841399,-168.57,0.00044822,15]
[314316112,1708177841408,-2000.0,0.00044857,120]
[314316113,1708177841418,-372.59,0.00044952,2]
[314316114,1708177841427,-1000.0,0.00045042,120]
[314316115,1708177841436,-921.05,0.00045066,2]
[314316116,1708177841446,-250.0,0.00045081,111]
[314316117,1708177841457,-161.85,0.00045129,2]
[314316118,1708177841466,-577.59468623,0.00045171,4]
[314316119,1708177841476,-173.64,0.00045192,120]
[314316120,1708177841486,-497.782397,0.00045205,14]
[314316121,1708177841495,-160.0,0.00045213,120]
[314316123,1708177841505,-223.26,0.000454,5]
[314316124,1708177841515,-223.26,0.000454,5]
[314316125,1708177841525,-223.26,0.000454,5]
[314316126,1708177841534,-223.26,0.000454,5]
[314316127,1708177841543,-223.26,0.000454,5]
[314316128,1708177841553,-223.26,0.000454,5]
[314316129,1708177841562,-223.26,0.000454,5]
[314316130,1708177841571,-223.26,0.000454,5]
[314316131,1708177841581,-223.26,0.000454,5]
[314316132,1708177841590,-223.26,0.000454,5]
[314316133,1708177841600,-223.26,0.000454,5]
[314316134,1708177841615,-223.26,0.000454,5]
[314316135,1708177841624,-223.26,0.000454,5]
[314316136,1708177841633,-223.26,0.000454,5]
[314316137,1708177841642,-223.26,0.000454,5]
[314316138,1708177841652,-223.26,0.000454,5]
[314316139,1708177841662,-223.26,0.000454,5]
[314316140,1708177841671,-223.26,0.000454,5]
[314316141,1708177841680,-223.26,0.000454,5]
[314316142,1708177841690,-223.26,0.000454,5]
[314316143,1708177841699,-343.27,0.00045573,2]
[314316144,1708177841709,-150.0,0.00045687,2]
[314316145,1708177841718,-1349.18,0.00045822,120]
[314316146,1708177841727,-600.0,0.00045827,2]
[314316147,1708177841737,-497.782397,0.00046027,14]
[314316148,1708177841746,-258.48,0.00046227,2]
[314316149,1708177841756,-150.0,0.00046273,2]
[314316150,1708177841766,-168.36,0.00046286,2]
[314316151,1708177841775,-250.0,0.00046343,2]
[314316152,1708177841784,-250.0,0.00046373,120]
[314316153,1708177841794,-950.34100236,0.00046427,8]
[314316154,1708177841803,-155.7,0.00046527,2]
[314316155,1708177841813,-497.782397,0.00046849,14]
[314316156,1708177841822,-323.73,0.00046982,2]
[314316157,1708177841831,-155.7,0.00047133,2]
[314316158,1708177841841,-227.25,0.00047225,2]
[314316159,1708177841850,-161.85,0.00047475,2]
[314316160,1708177841859,-497.782397,0.00047671,14]
[314316161,1708177841868,-950.34100227,0.00047702,9]
[314316162,1708177841877,-155.7,0.00047739,2]
[314316163,1708177841886,-173.64,0.00047932,120]
[314316164,1708177841895,-258.48,0.00047938,2]
[314316165,1708177841905,-200.0,0.0004806,120]
[314316166,1708177841914,-400.0,0.00048238,2]
[314316167,1708177841923,-155.7,0.00048317,2]
[314316168,1708177841932,-168.36,0.00048341,2]
[314316169,1708177841942,-155.7,0.00048345,2]
[314316170,1708177841951,-497.782397,0.00048493,14]
[314316171,1708177841960,-168.57,0.00048558,120]
[314316172,1708177841969,-150.71,0.00048749,10]
[314316173,1708177841979,-1983.14,0.00048759,120]
[314316174,1708177841988,-10148.9926516,0.000489,2]
[314316175,1708177841997,-690.3443,0.000489,2]
[314316176,1708177842006,-155.7,0.00048951,2]
[314316177,1708177842016,-950.34100227,0.00048977,10]
[314316178,1708177842027,-18961.58658794,0.00048979,120]
[314316179,1708177842036,-200.0,0.00049,31]
[314316180,1708177842046,-502.0110177,0.00049,10]
[314316181,1708177842054,-2325.92,0.00049,90]
[314316182,1708177842071,-223.26,0.00049,6]
[314316183,1708177842084,-223.26,0.00049,6]
[314316184,1708177842093,-223.26,0.00049,6]
[314316185,1708177842103,-223.26,0.00049,6]
[314316186,1708177842112,-223.26,0.00049,6]
[314316187,1708177842124,-223.26,0.00049,6]
[314316188,1708177842133,-223.26,0.00049,6]
[314316189,1708177842143,-223.26,0.00049,6]
[314316190,1708177842153,-223.26,0.00049,6]
[314316191,1708177842163,-223.26,0.00049,6]
[314316192,1708177842173,-223.26,0.00049,6]
[314316193,1708177842183,-223.26,0.00049,6]
[314316194,1708177842193,-223.26,0.00049,6]
[314316195,1708177842202,-223.26,0.00049,6]
[314316196,1708177842212,-223.26,0.00049,6]
[314316197,1708177842222,-223.26,0.00049,6]
[314316198,1708177842232,-223.26,0.00049,6]
[314316199,1708177842241,-82.50733654,0.00049,6]
[314316200,1708177842314,-140.75266346,0.00049,6]
[314316201,1708177842323,-223.26,0.00049,6]
[314316202,1708177842333,-223.26,0.00049,6]
[314316203,1708177842343,-2112.79293948,0.00049111,90]
[314316204,1708177842353,-323.73,0.00049246,2]
[314316205,1708177842365,-155.92,0.00049329,2]
[314316206,1708177842375,-206.0,0.000496,36]
[314316207,1708177842385,-258.48,0.00049648,2]
[314316208,1708177842395,-2500.0,0.000499,2]
[314316209,1708177842404,-162.79092511,0.00049998,2]
[314316210,1708177842414,-10000.0,0.0005,2]
[314316211,1708177842424,-500.0,0.0005,20]
[314316212,1708177842433,-30227.0,0.0005,14]
[314316213,1708177842444,-950.34100227,0.00050251,11]
[314316214,1708177842453,-168.36,0.00050396,2]
[314316215,1708177842463,-200.0,0.000505,120]
[314316217,1708177842473,-2927.31246968,0.000505,7]
[314316218,1708177842488,-4072.68753032,0.000505,7]
[314316219,1708177842497,-1772.386829,0.00050684,120]
[314316221,1708177842507,-1468.23656099,0.00050684,30]
[314316223,1708177842521,-12021.43985601,0.00050684,30]
[314316225,1708177842530,-8979.8,0.00050766,2]
[314316227,1708177842539,-160.0,0.00050865,120]
[314316228,1708177842548,-166.30093353,0.00050886,60]
[314316229,1708177842558,-1000.0,0.000509,2]
[314316230,1708177842567,-156.383,0.000509,2]
[314316231,1708177842576,-192.15,0.00050937,2]
[314316232,1708177842585,-180.0,0.00050966,120]
[314316233,1708177842594,-37874.3078664,0.0005099,13]
[314316234,1708177842604,-7574.86157328,0.0005099,13]
[314316235,1708177842613,-100000.0,0.00051,41]
[314316236,1708177842629,-20000.0,0.00051,7]
[314316237,1708177842639,-304.5585326,0.00051122,23]
[314316238,1708177842648,-258.48,0.00051358,2]
[314316239,1708177842658,-7574.86157328,0.00051386,13]
[314316240,1708177842669,-7256.0517,0.00051406,2]
[314316241,1708177842678,-564.35339691,0.0005141,14]
[314316242,1708177842687,-7574.86157328,0.00051486,13]
[314316243,1708177842697,-7574.86157328,0.0005149,13]
[314316244,1708177842706,-7574.86157328,0.00051496,13]
[314316245,1708177842717,-10000.0,0.000515,8]
[314316246,1708177842726,-5000.0,0.000515,60]
[314316247,1708177842735,-3000.0,0.000515,45]
[314316248,1708177842745,-1772.386829,0.00051506,120]
[314316249,1708177842754,-13489.676417,0.00051506,30]
[314316250,1708177842763,-323.73,0.0005151,2]
[314316251,1708177842773,-950.34100227,0.00051526,12]
[314316252,1708177842783,-7574.86157328,0.00051551,13]
[314316253,1708177842793,-600.0,0.00051555,120]
[314316254,1708177842803,-564.35339689,0.00051957,14]
[314316255,1708177842812,-60598.8925862,0.0005198,13]
[314316256,1708177842821,-81390.0624898,0.0005198,12]
[314316257,1708177842830,-158.37755032,0.00051987,2]
[314316258,1708177842840,-53024.031013,0.0005199,13]
[314316259,1708177842849,-187.5,0.00051999,120]
[314316260,1708177842858,-100000.0,0.00052,42]
[314316261,1708177842867,-160.0,0.00052,120]
[314316262,1708177842878,-443.096707,0.00052054,120]
[314316263,1708177842887,-3372.419104,0.00052054,30]
[314316264,1708177842896,-500.0,0.00052055,120]
[314316265,1708177842906,-289.262271,0.00052257,30]
[314316266,1708177842918,-600.650858,0.00052257,30]
[314316267,1708177842927,-7574.86157328,0.0005229,13]
[314316268,1708177842937,-168.57,0.00052294,120]
[314316269,1708177842946,-2000.0,0.000523,2]
[314316270,1708177842955,-500.0,0.00052359,120]
[314316271,1708177842964,-964.65,0.0005245,2]
[314316272,1708177842974,-168.36,0.00052451,2]
[314316273,1708177842983,-450.0,0.000525,30]
[314316274,1708177842994,-564.35339689,0.00052505,14]
[314316275,1708177843003,-500.0,0.00052573,2]
[314316276,1708177843013,-7574.86157328,0.0005259,14]
[314316277,1708177843022,-81390.0624898,0.0005259,12]
[314316278,1708177843032,-223.26,0.000526,7]
[314316279,1708177843042,-223.26,0.000526,7]
[314316280,1708177843051,-223.26,0.000526,7]
[314316281,1708177843061,-223.26,0.000526,7]
[314316282,1708177843070,-223.26,0.000526,7]
[314316283,1708177843079,-223.26,0.000526,7]
[314316284,1708177843088,-223.26,0.000526,7]
[314316285,1708177843098,-223.26,0.000526,7]
[314316286,1708177843107,-223.26,0.000526,7]
[314316287,1708177843117,-223.26,0.000526,7]
[314316288,1708177843126,-223.26,0.000526,7]
[314316289,1708177843135,-223.26,0.000526,7]
[314316290,1708177843145,-223.26,0.000526,7]
[314316291,1708177843347,-223.26,0.000526,7]
[314316292,1708177843362,-223.26,0.000526,7]
[314316293,1708177843371,-223.26,0.000526,7]
[314316294,1708177843381,-223.26,0.000526,7]
[314316295,1708177843390,-223.26,0.000526,7]
[314316296,1708177843400,-223.26,0.000526,7]
[314316297,1708177843409,-223.26,0.000526,7]
[314316298,1708177843420,-15149.7231466,0.00052663,14]
[314316299,1708177843431,-500.0,0.00052664,120]
[314316300,1708177843440,-775.36065687,0.00052672,4]
[314316301,1708177843450,-219.01310379,0.00052673,6]
[314316302,1708177843459,-3590.71076815,0.00052673,7]
[314316303,1708177843469,-9077.29361475,0.00052673,7]
[314316304,1708177843479,-9955.08183282,0.00052673,7]
[314316305,1708177843489,-2002.12626652,0.00052673,2]
[314316306,1708177843498,-318.83299943,0.00052673,2]
[314316307,1708177843507,-1000.0,0.00052673,45]
[314316308,1708177843517,-1000.0,0.00052673,45]
[314316309,1708177843527,-264.99286178,0.00052673,2]
[314316310,1708177843537,-160.0,0.0005274,120]
[314316311,1708177843546,-950.34100227,0.00052801,14]
[314316312,1708177843556,-7574.86157328,0.000529,14]
[314316313,1708177843566,-289.262271,0.0005291,30]
[314316314,1708177843580,-600.650858,0.0005291,30]
[314316315,1708177843590,-953.0,0.00052933,120]
[314316316,1708177843599,-1629.621,0.00052933,120]
[314316317,1708177843609,-418.576,0.00052933,120]
[314316318,1708177843620,-150.0,0.00052933,120]
[314316319,1708177843632,-150.0,0.00052933,120]
[314316320,1708177843642,-500.0,0.00052968,120]
[314316321,1708177843652,-30299.4462931,0.0005298,14]
[314316322,1708177843661,-81390.0624898,0.0005299,12]
[314316323,1708177843670,-16338.90538461,0.00053,43]
[314316324,1708177844596,-902.19264957,0.0005141,120]
[314316325,1708177844609,-604.35119843,0.00053,43]
[314316326,1708177844621,-1763.10156489,0.00053,43]
[314316327,1708177844632,-1758.14339674,0.00053,43]
[314316328,1708177844644,-313.27,0.00053,43]
[314316329,1708177844656,-2555.76074434,0.00053,43]
[314316330,1708177844667,-8085.86854201,0.00053,43]
[314316348,1708177844818,-68580.59916898,0.00053,43]
[314316351,1708177844827,-5000.0,0.00053,62]
[314316352,1708177844836,-258.48,0.00053069,2]
[314316354,1708177844845,-155.7,0.00053148,2]
[314316357,1708177844855,-152.78141472,0.0005319,56]
[314316359,1708177844864,-500.0,0.00053272,120]
[314316361,1708177844873,-100000.0,0.000533,2]
[314316363,1708177844882,-166.30093355,0.00053356,60]
[314316365,1708177844892,-10000.0,0.000534,120]
[314316367,1708177844901,-160.0,0.00053479,120]
[314316369,1708177844911,-81390.0624898,0.0005349,12]
[314316371,1708177844920,-5000.0,0.000535,30]
[314316372,1708177844929,-5000.0,0.000535,30]
[314316374,1708177844937,-5000.0,0.000535,30]
[314316376,1708177844947,-5000.0,0.000535,30]
[314316379,1708177844956,-5000.0,0.000535,30]
[314316381,1708177844965,-5000.0,0.000535,30]
[314316383,1708177844974,-5000.0,0.000535,30]
[314316385,1708177844983,-5000.0,0.000535,30]
[314316387,1708177844992,-5000.0,0.000535,30]
[314316389,1708177845001,-289.262271,0.00053563,30]
[314316391,1708177845010,-600.650858,0.00053563,30]
[314316393,1708177845018,-500.0,0.00053577,120]
[314316395,1708177845030,-200.0,0.0005369,7]
[314316397,1708177845039,-500.0,0.0005377,60]
[314316399,1708177845047,-323.73,0.00053773,2]
[314316401,1708177845057,-817.67952029,0.00053826,120]
[314316403,1708177845066,-500.0,0.00053881,120]
[314316404,1708177845074,-25000.0,0.000539,120]
[314316406,1708177845083,-200.0,0.00053987,93]
[314316408,1708177845092,-200.0,0.00053987,91]
[314316410,1708177845101,-4207.89323625,0.00053999,4]
[314316412,1708177845111,-100000.0,0.00054,44]
[314316414,1708177845120,-194.0,0.00054,9]
[314316416,1708177845129,-1849.0,0.00054,120]
[314316418,1708177845138,-950.34100227,0.00054076,15]
[314316421,1708177845148,-81390.0624898,0.0005414,12]
[314316423,1708177845158,-942.5466381,0.00054166,2]
[314316425,1708177845168,-500.0,0.00054186,120]
[314316427,1708177845177,-289.262271,0.00054216,30]
[314316429,1708177845187,-600.650858,0.00054216,30]
[314316431,1708177845196,-160.0,0.00054219,120]
[314316433,1708177845206,-200.0,0.00054238,7]
[314316435,1708177845214,-817.67952029,0.0005426,120]
[314316437,1708177845223,-400.0,0.00054268,120]
[314316439,1708177845232,-11536.68,0.00054384,6]
[314316441,1708177845241,-25000.0,0.000544,120]
[314316443,1708177845251,-500.0,0.0005449,120]
[314316445,1708177845260,-194.0,0.000545,10]
[314316447,1708177845269,-151.0,0.000545,120]
[314316449,1708177845280,-168.36,0.00054506,2]
[314316451,1708177845290,-942.5466381,0.00054517,2]
[314316453,1708177845299,-531.015731,0.000546,14]
[314316455,1708177845308,-5000.0,0.00054694,7]
[314316456,1708177845317,-153.67516023,0.00054694,120]
[314316459,1708177845327,-817.67952029,0.00054694,120]
[314316461,1708177845336,-457.7944194,0.00054694,53]
[314316462,1708177845346,-2500.0,0.00054694,71]
[314316463,1708177845354,-196.84951893,0.00054739,120]
[314316464,1708177845364,-293489.24272774,0.00054768,33]
[314316465,1708177845376,-275.79200001,0.00054768,33]
[314316466,1708177845387,-45061.95374054,0.00054768,33]
[314316467,1708177845408,-2947.39889937,0.00054768,33]
[314316468,1708177845422,-24269.83744866,0.00054768,33]
[314316470,1708177845434,-11955.20439353,0.00054768,33]
[314316472,1708177845446,-1321.86465,0.00054768,33]
[314316475,1708177845459,-13833.184442,0.00054768,33]
[314316477,1708177845470,-264440.35028627,0.00054768,33]
[314316480,1708177845481,-24511.69958404,0.00054768,33]
[314316484,1708177845496,-2657.9083574,0.00054768,33]
[314316489,1708177845519,-2642.10550942,0.00054768,33]
[314316491,1708177845531,-40565.0537107,0.00054768,33]
[314316526,1708177845800,-3327.15840005,0.00054768,33]
[314316529,1708177845811,-1373.00000001,0.00054768,33]
[314316533,1708177845823,-273.88498984,0.00054768,33]
[314316536,1708177845834,-686.125,0.00054768,33]
[314316554,1708177845927,-726.99373033,0.00054768,33]
[314316563,1708177845989,-1730.425,0.00054768,33]
[314316577,1708177846104,-3342.13888264,0.00054768,33]
[314316579,1708177846116,-4530.2684657,0.00054768,33]
[314316788,1708177869773,3883.02135507,0.00023,2]
[314316789,1708177869800,25000.0,0.00023,2]
[314316790,1708177869826,25000.0,0.00023,2]
[314316791,1708177869850,25000.0,0.00023,2]
[314316792,1708177869875,25000.0,0.00023,2]
[314316793,1708177886662,480.75556841,0.00018,2]
[314316794,1708177892226,1667.10780417,0.0001,2]
[314316795,1708177894369,345.27643508,0.000225,2]
[314316796,1708177912319,971.68953804,0.00021,4]
[314316797,1708177913819,7875.65287814,6.94e-05,2]
[314316798,1708177913841,368.7926858,6.94e-05,2]
[314316799,1708177913865,368.7926858,6.94e-05,2]
[314316800,1708177913900,368.7926858,6.94e-05,2]
[314316801,1708177913924,368.7926858,6.94e-05,2]
[314316802,1708177913945,4539.4,6.94e-05,2]
[314316803,1708177913967,4577.92796871,6.94e-05,2]
[314316804,1708177921029,4750.89348145,0.000155,2]
[314316805,1708177925227,459.19331251,0.0002,2]
[314316807,1708177994035,209.67659214,0.0001305,2]
[314316808,1708178026735,3679.19278328,0.000142,2]
[314316809,1708178048226,53530.08953904,0.0002,2]
[314316811,1708178057950,155.80389697,0.0002,2]
[314316812,1708178063959,216.77881127,0.000137,2]
[314316814,1708178068002,2299.37384547,0.00025,30]
[314316815,1708178069651,366.23553552,0.0002303,6]
[314316816,1708178072571,150.2124735,0.00023,3]
[314316817,1708178074311,173.33,0.00029469,120]
[314316818,1708178159796,-25000.0,0.000225,2]
[314316819,1708178161195,-6796.68404589,0.000225,2]
[314316820,1708178161219,-157.49298269,0.000228,2]
[314316821,1708178161243,-543.21392435,0.000229,2]
[314316822,1708178161265,-1000.0,0.000229,2]
[314316823,1708178161291,-16502.60904707,0.00022999,2]
[314316824,1708178162506,-12410.98638524,0.00022999,2]
[314316825,1708178162532,-500.0,0.00022999,2]
[314316826,1708178162559,-500.0,0.00022999,2]
[314316827,1708178162584,-500.0,0.00022999,2]
[314316828,1708178162610,-500.0,0.00022999,2]
[314316829,1708178162634,-399.35038093,0.00022999,2]
[314316830,1708178162659,-170.50622015,0.00022999,2]
[314316831,1708178162683,-500.0,0.00022999,2]
[314316832,1708178162707,-500.0,0.00022999,2]
[314316833,1708178162733,-499.99999999,0.00022999,2]
[314316834,1708178162757,-8519.15701369,0.00023,2]
[314316835,1708178163574,-25000.0,0.00023,2]
[314316836,1708178165321,-25000.0,0.00023,2]
[314316837,1708178166425,-25000.0,0.00023,2]
[314316838,1708178167514,-25000.0,0.00023,2]
[314316839,1708178168627,-25000.0,0.00023,2]
[314316840,1708178169982,-25000.0,0.00023,2]
[314316841,1708178171007,-25000.0,0.00023,2]
[314316842,1708178172006,-25000.0,0.00023,2]
[314316843,1708178172977,-25000.0,0.00023,2]
[314316844,1708178215016,373.19531045,0.0002293,6]
[314316846,1708178281011,4116.0,0.00033,120]
[314316847,1708178390117,298.55624836,0.0002293,6]
[314316848,1708178513020,1297.4,0.00021741,2]
[314316849,1708178535432,238.84499868,0.0002303,6]
[314316850,1708178680727,191.07599896,0.0002293,6]
[314316851,1708178682415,235.03,0.00023048,10]
[314316852,1708178682640,235.03,0.00023613,10]
[314316853,1708178682850,235.03,0.00024177,10]
[314316854,1708178683073,235.03,0.00024742,10]
[314316857,1708178748505,154.73626959,0.00022,2]
[314316858,1708178751522,177.43,0.00022,2]
[314316859,1708178762953,173.34,0.00022346,2]
[314316860,1708178774172,2000.0,0.00022346,2]
[314316861,1708178803738,224.93716217,0.0002238,2]
[314316862,1708178819204,519.9320021,0.000224,2]
[314316863,1708178820644,150.0,0.00022,2]
[314316864,1708178825756,150.0,0.00022,2]
[314316865,1708178825952,152.86079916,0.00022996,6]
[314316866,1708178828256,300.0,0.00022,2]
[314316868,1708178834195,23900.0,0.00022179,2]
[314316869,1708178838661,1324.72,0.00022141,2]
[314316870,1708178848169,7789.89,0.00022013,2]
[314316871,1708178863736,150.0,0.00021957,2]
[314316872,1708178868365,155.0,0.000224,2]
[314316873,1708178892475,2705.0,0.00021962,2]
[314316874,1708178919796,549.68,0.00021962,2]
[314316875,1708178944375,683.64,0.00021962,2]
[314316876,1708178974257,500.0,0.00021962,2]
[314316877,1708178994096,250.0,0.00021962,2]
[314316878,1708179031617,200.0,0.00021962,2]
[314316882,1708179031938,-278.49,0.00022401,2]
[314316883,1708179031947,-746.87,0.0002248,2]
[314316884,1708179031959,-167.87,0.0002248,2]
[314316885,1708179031968,-177.43,0.00022548,2]
[314316886,1708179031977,-39.0878097,0.00022548,2]
[314316887,1708179032104,-110.9121903,0.00022548,2]
[314316888,1708179032113,-750.0,0.00022604,2]
[314316889,1708179032122,-151.41361246,0.00022699,2]
[314316890,1708179032131,-51.92677958,0.0002272,2]
[314316891,1708179032143,-99.48683278,0.0002272,2]
[314316892,1708179032152,-151.41361236,0.00022741,2]
[314316893,1708179032161,-151.41361236,0.00022762,2]
[314316894,1708179032170,-151.41361236,0.00022783,2]
[314316895,1708179032179,-150.0,0.00022798,2]
[314316896,1708179032188,-150.0,0.00022798,2]
[314316897,1708179032198,-102.50985682,0.00022798,2]
[314316898,1708179032209,-636.00966495,0.00022798,2]
[314316899,1708179032229,-261.47047823,0.00022798,2]
[314316900,1708179032238,-343.93952177,0.00022798,2]